Cogmind - Beta 14 @@@ ROGUE MODE // 2024.11.09 @ 03:44:00 Player: Hinzy Result: Destroyed by as-25063 with Assembled Heavy Rifle Performance ------------- Evolutions (0) 0 Regions Visited (0) 0 Robots Destroyed (1) 5 Value Destroyed (7) 7 Prototype IDs (0) 0 Alien Tech Used (0) 0 Bonus (0) 0 TOTAL SCORE: 12 Bonus ------- None Cogmind --------- Core Integrity 0/250 Matter 192/300 Energy 250/250 System Corruption 0% Temperature Cool (0) Movement Walking (120) Location -11/Scrapyard Parts ------- > --- POWER (1) -------- Ion Engine > --- PROPULSION (2) --- Aluminum Leg Aluminum Leg > --- UTILITY (2) ------ Improved Terrain Scanner > --- WEAPON (2) ------- (None) > --- INVENTORY (5) ---- Small Storage Unit Peak State ------------ > --- POWER ------------ Ion Engine > --- PROPULSION ------- Aluminum Leg Aluminum Leg > --- UTILITY ---------- Improved Terrain Scanner > --- WEAPON ----------- EM Pulse Gun > --- INVENTORY -------- Small Storage Unit [Rating: 7] Favorites ----------- Power Ion Engine Engine Ion Engine Propulsion Light Treads Treads Light Treads Leg Aluminum Leg Utility Improved Terrain Scanner Device Improved Terrain Scanner Weapon EM Pulse Gun Energy Gun EM Pulse Gun Build | -11 ------- Run | Yrd Slots Evolved . | . Power . | . Propulsion . | . Utility . | . Weapon . | . Parts Attached 11 | 11 Power 2 | 2 Engine 2 | 2 Core . | . Reactor . | . Propulsion 4 | 4 Treads 2 | 2 Leg 2 | 2 Wheel . | . Hover . | . Flight . | . Utility 1 | 1 Device 1 | 1 Storage . | . Processor . | . Hackware . | . Protection . | . Artifact . | . Weapon 4 | 4 Energy Gun 4 | 4 Energy Cannon . | . Ballistic Gun . | . Ballistic Cannon . | . Launcher . | . Special Weapon . | . Impact Weapon . | . Slashing Weapon . | . Piercing Weapon . | . Special Melee Weapon . | . Unidentified Prototypes . | . Parts Lost 6 | 6 Power 1 | 1 Propulsion 2 | 2 Utility . | . Weapon 3 | 3 Highest Loss Streak 5 | 5 To Critical Strikes . | . Average Slot Usage (%) . | . Peak Build Rating 7 | 7 Average Rating 5 | 5 On Entrance . | . Naked Turns . | . Heaviest Build 9 | 9 Greatest Support 40 | 40 Greatest Overweight (x) 2 | 2 Average Overweight (x) . | . Largest Inventory Capacity 5 | 5 Average Capacity 5 | 5 Most Carried 3 | 3 Average Carried 1 | 1 Final Capacity 5 | 5 Final Carried 1 | 1 Class Distribution -------------------- None Dominant Class ---------------- None Resources | -11 ----------- Run | Yrd Matter Collected 167 | 167 Remotely . | . Salvage Created 13 | 13 Parts 2 | 2 Haulers Intercepted . | . Recyclers Shooed 1 | 1 Parts Field Recycled . | . Retrieved Matter . | . Parts Self-Destructed . | . Prevented . | . Kills | -11 ------- Run | Yrd Combat Hostiles Destroyed . | . Classes Destroyed 1 | 1 Tunneler 1 | 1 Best Kill Streak 1 | 1 Combat Bots Only . | . Max Kills in Single Turn 1 | 1 Gunslinging . | . Exploded . | . Melee . | . Uniques/NPCs Destroyed . | . Combat | -11 -------- Run | Yrd Hostile Shots Fired 26 | 26 Missed 5 | 5 Damage Taken 776 | 776 Core 261 | 261 Absorbed by Shields . | . Core Remaining (%) . | . Volleys Fired 13 | 13 Largest 2 | 2 Hottest 80 | 80 Shots Fired 15 | 15 Gun 15 | 15 Cannon . | . Launcher . | . Special . | . Kinetic . | . Thermal 2 | 2 Explosive . | . Electromagnetic 13 | 13 Robot Hit Streak 4 | 4 Robot Miss Streak 2 | 2 Penetration Max . | . Secondary Targets . | . Shots Hit Robots 9 | 9 Core Hits 2 | 2 Critical Kills . | . Critical Parts Destroyed . | . Critical Strikes 1 | 1 Corrupt 1 | 1 Melee Attacks . | . Impact . | . Slashing . | . Piercing . | . Sneak Attacks . | . Combat Hostiles . | . Follow-up Attacks . | . Damage Inflicted 102 | 102 Guns 99 | 99 Cannons . | . Explosions . | . Melee . | . Ramming 3 | 3 Kinetic . | . Thermal 20 | 20 Explosive . | . Electromagnetic 79 | 79 Impact . | . Slashing . | . Piercing . | . Highest Corruption . | . Average Corruption . | . Corruption Purged . | . Corruption Blocked . | . Overload Shots . | . Overflow Damage . | . Projectiles . | . Explosions . | . Melee . | . Knockbacks . | . Impact . | . Kinetic . | . Secondary . | . Self-Inflicted Damage . | . Shots . | . Rammed . | . Targets Rammed 2 | 2 Kicked 2 | 2 Crushed . | . Highest Temperature 6 | 6 Average Temperature 3 | 3 Received Heat Transfer . | . Siege Activations . | . Robots Corrupted . | . Combat Hostiles . | . Parts Fried . | . Impact Corruptions . | . Robots Melted . | . Combat Hostiles . | . Parts Melted . | . Heat Transferred 50 | 50 Parts Sabotaged . | . Parts Stolen . | . Parts Stripped . | . Power Chain Reactions . | . Alert | -11 ------- Run | Yrd Peak Influence 5 | 5 Initial . | . Average . | . Maximum Alert Level . | . Low Security (%) 100 | 100 Level 1 . | . Level 2 . | . Level 3 . | . Level 4 . | . Level 5 . | . High Security . | . Max Security . | . Squads Dispatched . | . Investigation . | . Extermination . | . Reinforcement . | . Assault . | . Garrison . | . Intercept . | . Searches Triggered . | . Construction Impeded . | . Haulers Reinforced . | . Active Scanning Responses . | . Cargo Convoy Interrupts . | . Stealth | -11 --------- Run | Yrd Distress Signals . | . Communications Jammed . | . Distress Signals . | . Times Spotted 5 | 5 Peak Tracking Total 2 | 2 Tactical Retreats 1 | 1 Traps | -11 ------- Run | Yrd Traps Triggered . | . Indirectly . | . Trap Hack Attempts . | . Triggered . | . Disarmed . | . Reprogrammed . | . Reused . | . Traps Extracted . | . Installed . | . Triggered . | . Machines | -11 ---------- Run | Yrd Machines Disabled . | . Max in Single Turn . | . Machines Repaired . | . Machines Dismantled . | . Machines Sabotaged . | . Overloaded Fab Kills . | . Hacking | -11 --------- Run | Yrd Machines Accessed . | . Terminals . | . Fabricators . | . Repair Stations . | . Recycling Units . | . Scanalyzers . | . Garrison Access . | . Total Hacks . | . Successful . | . Failed . | . Catastrophic . | . Database Lockouts . | . Manual . | . Terminals . | . Fabricators . | . Repair Stations . | . Recycling Units . | . Scanalyzers . | . Garrison Access . | . Terminal Hacks . | . Fabricator Hacks . | . Repair Station Hacks . | . Recycling Unit Hacks . | . Scanalyzer . | . Garrison Access Hacks . | . Unauthorized Hacks . | . Terminals . | . Fabricators . | . Repair Stations . | . Recycling Units . | . Scanalyzers . | . Garrison Access . | . Data Cores Recovered . | . Used . | . Hacking Detections . | . Full Trace Events . | . Feedback Events . | . Feedback Blocked . | . Robot Schematics Acquired . | . Robots Built . | . Authchips . | . Time . | . Total Robot Build Rating . | . Part Schematics Acquired . | . Parts Built . | . Authchips . | . Time . | . Total Part Build Rating . | . Parts Repaired . | . Time . | . Parts Recycled . | . Recycled Matter . | . Retrieved Matter . | . Retrieved Components . | . Parts Scanalyzed . | . Part Schematics Acquired . | . Parts Damaged . | . Bothacking | -11 ------------ Run | Yrd Used RIF Installer . | . Robots Hacked . | . Non-combat . | . Combat . | . Robot Hacks Applied . | . Relay Couplers Released . | . Fabnet Peak Effective % . | . Robots Rewired . | . Allies Hacked . | . Hacks Repelled . | . Allies | -11 -------- Run | Yrd Total Allies . | . Largest Group . | . Highest-Rated Group . | . Highest-Rated Ally . | . Total Orders . | . Ally Attacks . | . Total Damage . | . Kills . | . Allies Corrupted . | . Allies Melted . | . Intel | -11 ------- Run | Yrd Robot Analysis Total . | . Derelict Logs Recovered . | . Drone Launches . | . Drone Recoveries . | . Exploration | -11 ------------- Run | Yrd Turns Passed 2334 | 2334 Spaces Moved 472 | 472 Core 53 | 53 Treads 238 | 238 Legs 181 | 181 Wheels . | . Hover . | . Flight . | . Fastest Speed 50 | 50 Average Speed 133 | 133 Slowest Speed 160 | 160 Overloaded Moves . | . Propulsion Burnouts . | . Robots Hopped . | . Cave-ins Triggered . | . Exploration Rate (%) 57 | 57 Regions Visited . Branch Regions . Pre-discovered Areas . | . Known Exits Taken . | . Unknown Exits Taken . | . Scrap Searched . | . Spaces Dug . | . Terrain Destroyed . | . Melee . | . Projectile . | . AOE . | . Terrain Rammed . | . Walls Destroyed . | . Machines Disabled . | . Actions | -11 --------- Run | Yrd Total 2158 | 2158 Wait 1657 | 1657 Move 472 | 472 Hop . | . Pick Up 2 | 2 Fast Attach 9 | 9 Attach 2 | 2 Detach 1 | 1 Swap . | . Drop . | . Fire 13 | 13 Melee . | . Ram . | . Kick 2 | 2 Crush . | . Escape Stasis . | . Rewire . | . Trap . | . Miscellaneous . | . Route ------- -11/Scrapyard (discovered 1 exit: [*Mat]) History --------- Turn | Location | Event 13 | -11/Scrapyard | Discovered new exit (range 15) 2037 | -11/Scrapyard | Assembled infested the area 2069 | -11/Scrapyard | Core integrity fell below 50% 2073 | -11/Scrapyard | Core integrity fell below 20% 2105 | -11/Scrapyard | Lost 5 parts (1p2n2w) 2335 | -11/Scrapyard | Destroyed by as-25063 with Assembled Heavy Rifle Last Messages --------------- 02070_ The unstable cave ceiling collapses. 02070_ Lgt. Treads destroyed. 02070_ D-53 Grenadier IFF system glitched. 02070_ D-53 Grenadier destroyed. 02072_ Sml. Laser destroyed. 02073_ The unstable cave ceiling collapses. 02074_ Lgt. Treads destroyed. 02075_ The unstable cave ceiling collapses. 02076_ D-53 Grenadier destroyed. 02077_ The unstable cave ceiling collapses. 02092_ Acquired 58 matter. 02099_ Acquired 38 matter. 02100_ Acquired Ion Engine. 02103_ Acquired Aluminum Leg. 02111_ Acquired 30 matter. 02124_ T-07 Excavator destroyed. 02128_ Acquired Imp. Terrain Scanner. 02160_ K-01 Serf collects debris. 02324_ EM Pulse Gun destroyed. 02333_ Kicked as-25063 out of the way. Map ----- +----------------------------------------------------+ | ????????????????#?????????????#??????????????????? | | ?????????????????????????????????????????????????? | | ?????????????????????????????????????????????????? | | ?????????????????????????????????????????????????? | | ???????????????????????????????#?????????????????? | | ?????????????????????????????????????????????????? | | ?????????????????????????????????????????????????? | | ????????????????????####?????????????????????????? | | ????????????????????# ##????????????????????????? | | ????????????????????# ########??????#???????????? | | ????#?????#????#???## # #??????????????????? | | ???????????#?######## #??#???????????????? | | ?????????????# # # #??????????????????? | | ?????????????# #??????????????????? | | ?????????????# # # #??????????????????? | | #????????????# # # #?????#????????????? | | ?????????????# # ########????????########### | | ?????????????# # #?##???????????## ## | | ?????????#??######### ###########????# # | | ???#???????#????????# ## #????# # | | ??????#?????????#???# ## #??### # | | ???##??##?#?????????# ## #?## # | | ????????#?????????#?# ## #?# | | ???????#######?????## ## #?# # # | | ???????# ####### # #?# | | ??#????## #@ #?# | | ??#?????# a #?# # # | | ????????# ####### # #?# # | | ????????## ######### a###########?## # | | ?????????# ## ## # #?????# # ## | | #????????# ## # # #??#??# ######## | | ?????????# ## #?????# #### | | ??????#### ## # # #?????# # | | ???????# ## # # #?????######## # | | ???????# #### ?# # #??????#?????# | | ???????######??####?# #?#######???????????# # | | ?????????????????#??# #?##????????????????# #### | | ??#?#???????????????# ##???????????????#### #### | | ??????????#########?# #???##########???# # | | ????????#?# # #???# #???# # | | ??????????# # #???# #???# # | | ?????????## # ##### ##### | | ??????????# = | | ??????#???# # # | | ?????????## # ##### = ##### < # | | ??????????# ?# #??## #???# # | | ??????#???## #?# #???# #???########## | | ???????????#######??# ######## ####????????????? | | ??????????????####### # # #???????????????? | | ?????#????????# # # #???????????????? | +----------------------------------------------------+ Best States ------------- Heat Dissipation 25 Energy Generation 10 Energy Capacity 250 Matter Stores 192 Matter Capacity 300 Sight Range 16 Terrain Scan Range 16 Terrain Scan Density 10 Evasion (%) 55 Recoil Reduction 2 Item Schematics ----------------- None Robot Schematics ------------------ None Fabricated ------------ Nothing Alien Tech Used ----------------- None Achievements -------------- Curiosity Killed The Cat Challenges ------------ None Game ------ Seed DamperMiniLauncher Manual? 0 Play Time 00:20:24 Cumulative 5.9 hours Start 2024.11.09 @ 03:30:51 End 2024.11.09 @ 03:44:00 Sessions 0 Manual Loads 0 Difficulty Rogue Special Mode None Game No. 4 Rogue 4 Adventurer 0 Explorer 0 Win Type - Total 0 Types 0/0/0/0/0/0/0/0/0 Lore% 6 Gallery% 9 Achievement% 8 Wizard Run 0 Options --------- Layout 1 ASCII 0 Keyboard 1 Movement Numpad Keybinds 0 Fullscreen 1 Font 24/Proggy Map View 50x35 Zoom Use 0% Tactical HUD 1 Map Filters NONE Filters NONE Steam 1 RUN: 4749a334-05a3-4775-8b58-498a7b5c654e